Cogmind - Beta 10.2 @@@ ROGUE MODE // 2022.02.06 @ 20:00:57 Player: Zach Result: Destroyed by G-47 Trooper with Particle Gun Performance ------------- Evolutions (0) 0 Regions Visited (1) 200 Robots Destroyed (6) 30 Value Destroyed (80) 80 Prototype IDs (0) 0 Alien Tech Used (0) 0 Bonus (0) 0 TOTAL SCORE: 310 Bonus ------- None Cogmind --------- Core Integrity 0/250 Matter 295/300 Energy 117/125 System Corruption 4% Temperature Cool (9) Movement Core (600) Ox11 Location -10/Materials Parts ------- > --- POWER (1) -------- Light Ion Engine > --- PROPULSION (2) --- (None) > --- UTILITY (2) ------ Large Storage Unit Large Storage Unit > --- WEAPON (2) ------- (None) > --- INVENTORY (16) --- Light Ion Engine Light Ion Engine Small Storage Unit Peak State ------------ > --- POWER ------------ Light Ion Engine > --- PROPULSION ------- Aluminum Leg Aluminum Leg > --- UTILITY ---------- Small Storage Unit Large Storage Unit > --- WEAPON ----------- Medium Laser Assault Rifle > --- INVENTORY -------- Light Ion Engine Light Ion Engine Aluminum Leg Aluminum Leg Light Assault Rifle [Rating: 7] Favorites ----------- Power Light Ion Engine Engine Light Ion Engine Propulsion Aluminum Leg Leg Aluminum Leg Utility Large Storage Unit Storage Large Storage Unit Weapon Assault Rifle Energy Gun Medium Laser Ballistic Gun Assault Rifle Build | -11 -10 ------- Run | Scr Mat Slots Evolved . | . . Power . | . . Propulsion . | . . Utility . | . . Weapon . | . . Parts Attached 19 | 7 12 Power 6 | 1 5 Engine 6 | 1 5 Core . | . . Reactor . | . . Propulsion 5 | 2 3 Treads . | . . Leg 5 | 2 3 Wheel . | . . Hover . | . . Flight . | . . Utility 3 | 1 2 Device . | . . Storage 3 | 1 2 Processor . | . . Hackware . | . . Protection . | . . Artifact . | . . Weapon 5 | 3 2 Energy Gun 1 | 1 . Energy Cannon . | . . Ballistic Gun 4 | 2 2 Ballistic Cannon . | . . Launcher . | . . Special Weapon . | . . Impact Weapon . | . . Slashing Weapon . | . . Piercing Weapon . | . . Special Melee Weapon . | . . Unidentified Prototypes . | . . Parts Lost 11 | . 11 Power 2 | . 2 Propulsion 5 | . 5 Utility . | . . Weapon 4 | . 4 Highest Loss Streak 8 | . 8 Average Slot Usage (%) 86 | . 86 Engine 12 | . 12 Leg 24 | . 24 Storage 25 | . 25 Energy Gun 3 | . 3 Ballistic Gun 18 | . 18 Naked Turns . | . . Heaviest Build 38 | 11 38 Greatest Support 20 | 20 20 Greatest Overweight (x) 11 | 1 11 Average Overweight (x) . | . 1 Largest Inventory Capacity 16 | 6 16 Average Capacity 11 | 5 14 Most Carried 7 | 4 7 Average Carried 4 | 2 5 Final Capacity 16 | 6 16 Final Carried 3 | 3 3 Class Distribution -------------------- 100% | Mutant Dominant Class ---------------- Mutant | -10/Materials Resources | -11 -10 ----------- Run | Scr Mat Matter Collected 395 | 282 113 Remotely . | . . Salvage Created 201 | 84 117 Parts 13 | 3 10 Haulers Intercepted . | . . Recyclers Shooed . | . . Parts Field Recycled . | . . Retrieved Matter . | . . Parts Self-Destructed . | . . Prevented . | . . Kills | -11 -10 ------- Run | Scr Mat Combat Hostiles Destroyed 5 | . 5 Guns 5 | . 5 Classes Destroyed 3 | 1 2 Recycler 1 | 1 . Swarmer 4 | . 4 Grunt 1 | . 1 Best Kill Streak 2 | 1 2 Combat Bots Only 2 | . 2 Max Kills in Single Turn 1 | 1 1 Gunslinging . | . . Exploded . | . . Melee . | . . Uniques/NPCs Destroyed . | . . Combat | -11 -10 -------- Run | Scr Mat Damage Taken 1279 | . 1279 Core 258 | . 258 Absorbed by Shields . | . . Core Remaining (%) 100 | 100 . Volleys Fired 28 | 4 24 Largest 2 | 2 2 Hottest 70 | 70 70 Shots Fired 45 | 8 37 Gun 45 | 8 37 Cannon . | . . Launcher . | . . Special . | . . Kinetic 37 | 4 33 Thermal 8 | 4 4 Explosive . | . . Electromagnetic . | . . Robot Hit Streak 4 | 4 4 Robot Miss Streak 7 | 1 7 Penetration Max . | . . Secondary Targets 1 | . 1 Max Gunslinging Chain 1 | . 1 Shots Hit Robots 22 | 6 16 Core Hits 9 | 2 7 Critical Hits . | . . Critical Kills . | . . Critical Parts Destroyed . | . . Melee Attacks . | . . Impact . | . . Slashing . | . . Piercing . | . . Sneak Attacks . | . . Combat Hostiles . | . . Follow-up Attacks . | . . Damage Inflicted 259 | 78 181 Guns 242 | 78 164 Cannons . | . . Explosions . | . . Melee . | . . Ramming 17 | . 17 Kinetic 192 | 40 152 Thermal 50 | 38 12 Explosive . | . . Electromagnetic . | . . Impact . | . . Slashing . | . . Piercing . | . . Highest Corruption 4 | . 4 Average Corruption 3 | . 3 Corruption Purged . | . . Overload Shots . | . . Overflow Damage . | . . Projectiles . | . . Explosions . | . . Melee . | . . Knockbacks . | . . Impact . | . . Kinetic . | . . Secondary . | . . Self-Inflicted Damage 5 | . 5 Shots . | . . Rammed 6 | . 6 Targets Rammed 7 | . 7 Kicked 1 | . 1 Crushed . | . . Highest Temperature 66 | 36 66 Average Temperature 24 | 19 26 Received Heat Transfer 366 | . 366 Siege Activations . | . . Robots Corrupted . | . . Combat Hostiles . | . . Parts Fried . | . . Impact Corruptions . | . . Robots Melted . | . . Combat Hostiles . | . . Parts Melted . | . . Heat Transferred 148 | 111 37 Parts Sabotaged . | . . Parts Stolen . | . . Parts Stripped . | . . Power Chain Reactions . | . . Missiles Intercepted . | . . Alert | -11 -10 ------- Run | Scr Mat Peak Influence 123 | 5 123 Initial 3 | . 3 Average 54 | 1 71 Maximum Alert Level . | . . Low Security (%) 100 | 100 100 Level 1 . | . . Level 2 . | . . Level 3 . | . . Level 4 . | . . Level 5 . | . . High Security . | . . Max Security . | . . Squads Dispatched 3 | . 3 Investigation . | . . Extermination . | . . Reinforcement 3 | . 3 Assault . | . . Garrison . | . . Intercept . | . . Construction Impeded . | . . Haulers Reinforced . | . . Stealth | -11 -10 --------- Run | Scr Mat Distress Signals 1 | . 1 Communications Jammed . | . . Distress Signals . | . . Times Spotted 21 | . 21 Peak Tracking Total 9 | . 9 Tactical Retreats 2 | . 2 Traps | -11 -10 ------- Run | Scr Mat Traps Triggered . | . . Indirectly . | . . Trap Hack Attempts . | . . Triggered . | . . Disarmed . | . . Reprogrammed . | . . Reused . | . . Traps Extracted . | . . Installed . | . . Triggered . | . . Machines | -11 -10 ---------- Run | Scr Mat Machines Disabled . | . . Max in Single Turn . | . . Machines Sabotaged . | . . Garrisons Compromised . | . . Overloaded Fab Kills . | . . Fab Network Shutdowns . | . . Hacking | -11 -10 --------- Run | Scr Mat Machines Accessed . | . . Terminals . | . . Fabricators . | . . Repair Stations . | . . Recycling Units . | . . Scanalyzers . | . . Garrison Access . | . . Total Hacks . | . . Successful . | . . Failed . | . . Catastrophic . | . . Database Lockouts . | . . Manual . | . . Terminals . | . . Fabricators . | . . Repair Stations . | . . Recycling Units . | . . Scanalyzers . | . . Garrison Access . | . . Terminal Hacks . | . . Fabricator Hacks . | . . Repair Station Hacks . | . . Recycling Unit Hacks . | . . Scanalyzer . | . . Garrison Access Hacks . | . . Unauthorized Hacks . | . . Terminals . | . . Fabricators . | . . Repair Stations . | . . Recycling Units . | . . Scanalyzers . | . . Garrison Access . | . . Data Cores Recovered . | . . Used . | . . Hacking Detections . | . . Full Trace Events . | . . Feedback Events . | . . Feedback Blocked . | . . Robot Schematics Acquired . | . . Robots Built . | . . Matter . | . . Time . | . . Total Robot Build Rating . | . . Part Schematics Acquired . | . . Parts Built . | . . Matter . | . . Time . | . . Total Part Build Rating . | . . Parts Repaired . | . . Time . | . . Parts Recycled . | . . Recycled Matter . | . . Retrieved Matter . | . . Retrieved Components . | . . Parts Scanalyzed . | . . Part Schematics Acquired . | . . Parts Damaged . | . . Bothacking | -11 -10 ------------ Run | Scr Mat Used RIF Installer . | . . Robots Hacked . | . . Non-combat . | . . Combat . | . . Robot Hacks Applied . | . . Relay Couplers Released . | . . Robots Rewired . | . . Allies Hacked . | . . Hacks Repelled . | . . Allies | -11 -10 -------- Run | Scr Mat Total Allies . | . . Largest Group . | . . Highest-Rated Group . | . . Highest-Rated Ally . | . . Total Orders . | . . Ally Attacks . | . . Total Damage . | . . Kills . | . . Allies Corrupted . | . . Allies Melted . | . . Intel | -11 -10 ------- Run | Scr Mat Robot Analysis Total . | . . Derelict Logs Recovered . | . . Drone Launches . | . . Drone Recoveries . | . . Exploration | -11 -10 ------------- Run | Scr Mat Turns Passed 230 | 57 173 Spaces Moved 89 | 35 54 Core 18 | 17 1 Treads . | . . Legs 71 | 18 53 Wheels . | . . Hover . | . . Flight . | . . Fastest Speed 50 | 50 120 Average Speed 128 | 88 155 Slowest Speed 600 | 120 600 Overloaded Moves . | . . Propulsion Burnouts . | . . Robots Hopped . | . . Cave-ins Triggered . | . . Exploration Rate (%) 12 | 4 20 Regions Visited 1 Branch Regions . Pre-discovered Areas . | . . Known Exits Taken . | . . Unknown Exits Taken 1 | 1 . Scrap Searched . | . . Spaces Dug . | . . Terrain Destroyed . | . . Melee . | . . Projectile . | . . AOE . | . . Terrain Rammed . | . . Walls Destroyed . | . . Machines Disabled . | . . Actions | -11 -10 --------- Run | Scr Mat Total 153 | 50 103 Wait 3 | . 3 Move 88 | 34 54 Hop . | . . Pick Up 8 | 5 3 Fast Attach 8 | 4 4 Attach 6 | 2 4 Detach . | . . Swap 5 | 1 4 Drop . | . . Fire 28 | 4 24 Melee . | . . Ram . | . . Kick 7 | . 7 Crush . | . . Escape Stasis . | . . Rewire . | . . Trap . | . . Miscellaneous . | . . Route ------- -11/Scrapyard -10/Materials History --------- Turn | Location | Event 6 | -11/Scrapyard | Discovered new exit (range 15) 58 | -11/Scrapyard | Entered Materials 152 | -10/Materials | Lost 3 parts (1p1n1w) 202 | -10/Materials | Core integrity fell below 50% 227 | -10/Materials | Core integrity fell below 20% 231 | -10/Materials | Destroyed by G-47 Trooper with Particle Gun Last Messages --------------- 00194_ K-01 Serf collects debris. 00201_ Lgt. Assault Rifle destroyed. 00208_ Acquired 18 matter. 00211_ Slammed into S-10 Pest. 00211_ Destabilizing: System corrupted (+2). 00212_ Slammed into S-10 Pest. 00212_ Aluminum Leg permanently disabled. 00212_ Destabilizing: Short circuit. 00213_ Lgt. Ion Engine destroyed. 00214_ Slammed into S-10 Pest. 00214_ Destabilizing: System corrupted (+2). 00216_ Kicked S-10 Pest out of the way. 00219_ Slammed into S-10 Pest. 00223_ Broken Aluminum Leg destroyed. 00225_ K-01 Serf collects debris. 00225_ Lgt. Assault Rifle destroyed. 00229_ Aluminum Leg destroyed. 00229_ K-01 Serf collects debris. 00230_ S-10 Pest destroyed. 00231_ K-01 Serf collects debris. Map ----- +----------------------------------------------------+ | ???????????? ?????????# ????????? | | ???????????# ????????# """ """???????????? | | ?????????? ######## = """ ""????????????? | | ?????????? """ """ ??????????? | | ?????????? ????????? | | ???????????? """"" ????????? | | ???????????????""" ############+#?????????? | | ??????????" """"" #??????????????????????? | | ????????? #??????????????????????? | | ????????? ####???????????????????? | | ????????? ######## % !!##??????????????????? | | ???????????? ????????# !#??????????????????? | | ??????????????????????# #??????????????????? | | ??????????????????????# #??????????????????? | | ??????????????????????# !#??????????????????? | | ??????????????????????# !!##??????????????????? | | ??????????????????????#= ####???????????????????? | | ??????????????????????# ###????????????????????? | | ??????????????????????#= T#????????????????????? | | ??????????????????????# ""#????????????????????? | | ??????????????????????#ggk###????????????????????? | | ??????????????????????# % #??????????????????????? | | ??????????????????????# = #??????????????????????? | | ???????????# t######## s#??????????????????????? | | ???????????# g ##?????????????????????? | | ???????????# g @T#?????????????????????? | | ???????????# k w ##?????????????????????? | | ???????????#w ####### o#??????????????????????? | | ???????????# ????????# g??????????????????????? | | ?????????????????????#u ?????????????????????? | | ?????????????????????# k ?????????????????????? | | ?????????????????????# ????????????????????? | | ?????????????????????# ???????????????????? | | ?????????????????????# """ ???????????????????? | | ?????????????????????# """ ??????????????????? | | ?????????????????????# """ ??????????????????? | | ?????????????????????# ??? ??????????????????? | | ?????????????????????# ??? ??????????????????? | | ?????????????????????# ??? ????????????????????? | | ?????????????????????###???? ????????????????????? | | ?????????????????????????????????????????????????? | | ?????????????????????????????????????????????????? | | ?????????????????????????????????????????????????? | | ?????????????????????????????????????????????????? | | ?????????????????????????????????????????????????? | | ?????????????????????????????????????????????????? | | ?????????????????????????????????????????????????? | | ?????????????????????????????????????????????????? | | ?????????????????????????????????????????????????? | | ?????????????????????????????????????????????????? | +----------------------------------------------------+ Best States ------------- Heat Dissipation 25 Energy Generation 10 Energy Capacity 125 Matter Stores 300 Matter Capacity 300 Sight Range 16 Terrain Scan Density 10 Evasion (%) 50 Item Schematics ----------------- None Robot Schematics ------------------ None Fabricated ------------ Nothing Alien Tech Used ----------------- None Achievements -------------- None Challenges ------------ None Game ------ Seed GlidesysCooledCloak Manual? 0 Play Time 00:09:21 Cumulative 25.6 hours Start 2022.02.06 @ 19:53:31 End 2022.02.06 @ 20:00:57 Sessions 1 Manual Loads 0 Difficulty Rogue Special Mode None Game No. 38 Rogue 38 Adventurer 0 Explorer 0 Win Type - Total 0 Types 0/0/0/0/0/0/0/0/0 Lore% 4 Gallery% 20 Achievement% 14 Wizard Run 0 Options --------- ASCII 0 Keyboard 0 Movement Mouse Keybinds 0 Fullscreen 1 Font 18/SmallcapsGlow Map View 76x50 Tactical HUD 1 Map Filters NONE Filters NONE Steam 1 RUN: 07ad6ed7-7c62-4209-b62f-f7293f49cdd9